[Event "NOR-ch Elite 2019"]
[Site "Larvik"]
[Date "2019.07.05"]
[Round "1.10"]
[White "Ingebretsen, Jens E"]
[Black "Elsness, Frode"]
[Result "0-1"]
[ECO "E06"]
[WhiteElo "2276"]
[BlackElo "2436"]
[Annotator "NA"]
[PlyCount "50"]
[EventDate "2019.07.05"]
[EventType "swiss"]
[EventCountry "NOR"]
[SourceTitle "playchess.com"]
[Source "ChessBase"]
[SourceQuality "1"]
[TimeControl "40/5400+30:1800+30"]

1. c4 {[%emt 0:00:00]} e6 {[%emt 0:02:12]} 2. g3 {[%emt 0:00:00]} d5 {[%emt 0:00:03]} 3. Bg2 {[%emt 0:00:00]} Nf6 {[%emt 0:01:53]} 4. Nf3 {[%emt 0:00:06]} c5 {[%emt 0:01:11]} 5. O-O {[%emt 0:01:06]} Be7 {[%emt 0:02:18]} 6. d4 {[%emt 0:03:12]} O-O {[%emt 0:03:02]} 7. dxc5 {[%emt 0:04:27]} Bxc5 {[%emt 0:00:35]} 8. Qc2 {[%emt 0:00:28]} Bb6 {[%emt 0:08:05]} 9. Bf4 {[%emt 0:07:22]} Nc6 {[%emt 0:04:22]} 10. Nc3 {[%emt 0:02:22]} Qe7 {[%emt 0:10:25]} 11. Ne5 {[%emt 0:10:22]} Nxe5 {[%emt 0:05:33]} 12. Bxe5 {[%emt 0:00:11]} Ng4 {[%emt 0:02:14]} 13. Bf4 {[%emt 0:00:41]} d4 {[%emt 0:00:24]} 14. Ne4 {[%emt 0:12:51]} e5 {[%emt 0:05:55]} 15. Bg5 {[%emt 0:01:42]} f6 {[%emt 0:00:42]} 16. Bd2 {[%emt 0:01:23]} Be6 {[%emt 0:07:55]} 17. c5 {[%emt 0:08:50]} Bc7 {[%emt 0:05:15]} 18. Bb4 {[%emt 0:13:09]} f5 {[%emt 0:08:20]} 19. Nd6 {[%emt 0:01:00]} e4 {[%emt 0:01:47]} 20. Nxb7 {[%emt 0:03:27]} Bxg3 {[%emt 0:08:35]} 21. hxg3 {[%emt 0:00:48]} Qxb7 {[%emt 0:00:01]} 22. Ba3 {[%emt 0:04:56]} Qf7 {[%emt 0:01:34]} 23. Bh3 {[%emt 0:02:40]} Qh5 {[%emt 0:02:29]} 24. Bxg4 {[%emt 0:00:39]} fxg4 {[%emt 0:04:40]} 25. f4 {[%emt 0:09:21]} e3 {[%emt 0:02:39]} 0-1

[Event "NOR-ch Elite 2019"]
[Site "Larvik"]
[Date "2019.07.05"]
[Round "1.11"]
[White "Haug, Johannes"]
[Black "Ranaldi, Lucas"]
[Result "1/2-1/2"]
[ECO "E18"]
[WhiteElo "2431"]
[BlackElo "2262"]
[Annotator "NA"]
[PlyCount "81"]
[EventDate "2019.07.05"]
[EventType "swiss"]
[EventCountry "NOR"]
[SourceTitle "playchess.com"]
[Source "ChessBase"]
[SourceQuality "1"]
[TimeControl "40/5400+30:1800+30"]

1. d4 {[%emt 0:00:00]} Nf6 {[%emt 0:00:00]} 2. c4 {[%emt 0:00:00]} e6 {[%emt 0:00:00]} 3. Nf3 {[%emt 0:00:00]} b6 {[%emt 0:00:00]} 4. g3 {[%emt 0:00:00]} Bb7 {[%emt 0:00:03]} 5. Bg2 {[%emt 0:00:00]} Be7 {[%emt 0:00:10]} 6. Nc3 {[%emt 0:00:00]} Ne4 {[%emt 0:00:14]} 7. Bd2 {[%emt 0:00:19]} f5 {[%emt 0:00:20]} 8. O-O {[%emt 0:00:08]} O-O {[%emt 0:00:14]} 9. Ne5 {[%emt 0:00:07]} Nxc3 {[%emt 0:12:16]} 10. Bxc3 {[%emt 0:00:10]} Bxg2 {[%emt 0:00:07]} 11. Kxg2 {[%emt 0:00:11]} d5 {[%emt 0:01:37]} 12. Qd3 {[%emt 0:02:35]} Bf6 {[%emt 0:03:13]} 13. Rfd1 {[%emt 0:02:01]} c6 {[%emt 0:16:57]} 14. Rac1 {[%emt 0:04:57]} Bxe5 {[%emt 0:25:50]} 15. dxe5 {[%emt 0:06:26]} Na6 {[%emt 0:00:15]} 16. f3 {[%emt 0:23:47]} Nc5 {[%emt 0:02:39]} 17. Qe3 {[%emt 0:01:37]} Na6 {[%emt 0:10:27]} 18. cxd5 {[%emt 0:07:57]} cxd5 {[%emt 0:00:14]} 19. Bd4 {[%emt 0:05:19]} Qe7 {[%emt 0:03:55]} 20. Rc3 {[%emt 0:11:25]} Rfc8 {[%emt 0:01:01]} 21. Rdc1 {[%emt 0:00:09]} Qd7 {[%emt 0:01:00]} 22. a3 {[%emt 0:00:47]} Rxc3 {[%emt 0:08:29]} 23. Qxc3 {[%emt 0:00:13]} Re8 {[%emt 0:02:54]} 24. b4 {[%emt 0:06:38]} Re7 {[%emt 0:02:35]} 25. a4 {[%emt 0:01:10]} Qb7 {[%emt 0:06:42]} 26. b5 {[%emt 0:03:56]} Nc7 {[%emt 0:00:18]} 27. Qe3 {[%emt 0:01:13]} Ne8 {[%emt 0:00:26]} 28. Rc6 {[%emt 0:01:15]} h6 {[%emt 0:00:47]} 29. g4 {[%emt 0:01:31]} fxg4 {[%emt 0:00:14]} 30. fxg4 {[%emt 0:00:02]} Qd7 {[%emt 0:00:58]} 31. Bc3 {[%emt 0:04:53]} Nc7 {[%emt 0:00:22]} 32. Qd4 {[%emt 0:00:41]} Rf7 {[%emt 0:00:39]} 33. Bb4 {[%emt 0:03:09]} Qd8 {[%emt 0:00:01]} 34. Bd2 {[%emt 0:07:07]} Qh4 {[%emt 0:00:56]} 35. h3 {[%emt 0:00:37]} h5 {[%emt 0:00:17]} 36. Rc1 {[%emt 0:00:44]} Kh8 {[%emt 0:01:06]} 37. Be3 {[%emt 0:03:27]} Kg8 {[%emt 0:00:31]} 38. Bf2 {[%emt 0:03:34]} Qg5 {[%emt 0:00:19]} 39. Be3 {[%emt 0:00:01]} Qh4 {[%emt 0:00:00]} 40. Bf2 {[%emt 0:01:12]} Qg5 {[%emt 0:00:46]} 41. Be3 {[%emt 0:09:01]} 1/2-1/2

[Event "NOR-ch Elite 2019"]
[Site "Larvik"]
[Date "2019.07.05"]
[Round "1.12"]
[White "Altarbosh, Ward"]
[Black "Mikalsen, Erlend"]
[Result "0-1"]
[ECO "B66"]
[WhiteElo "2202"]
[BlackElo "2404"]
[Annotator "NA"]
[PlyCount "45"]
[EventDate "2019.07.05"]
[EventType "swiss"]
[EventCountry "NOR"]
[SourceTitle "playchess.com"]
[Source "ChessBase"]
[SourceQuality "1"]
[TimeControl "40/5400+30:1800+30"]

1. e4 {[%emt 0:10:20]} c5 {[%emt 0:35:17]} 2. Nf3 {[%emt 0:00:12]} d6 {[%emt 0:00:07]} 3. d4 {[%emt 0:00:08]} cxd4 {[%emt 0:00:06]} 4. Nxd4 {[%emt 0:00:04]} Nf6 {[%emt 0:00:06]} 5. Nc3 {[%emt 0:00:08]} Nc6 {[%emt 0:00:04]} 6. Bg5 {[%emt 0:00:26]} e6 {[%emt 0:00:06]} 7. Qd2 {[%emt 0:00:06]} a6 {[%emt 0:00:03]} 8. O-O-O {[%emt 0:00:30]} h6 {[%emt 0:00:04]} 9. Be3 {[%emt 0:16:31]} Bd7 {[%emt 0:01:11]} 10. f4 {[%emt 0:01:13]} b5 {[%emt 0:05:55]} 11. a3 {[%emt 0:00:05]} Nxd4 {[%emt 0:06:00]} 12. Qxd4 {[%emt 0:00:21]} Bc6 {[%emt 0:02:57]} 13. Be2 {[%emt 0:03:06]} Qc7 {[%emt 0:03:11]} 14. Bf3 {[%emt 0:04:15]} Be7 {[%emt 0:04:45]} 15. g4 {[%emt 0:01:43]} Nd7 {[%emt 0:10:22]} 16. Kb1 {[%emt 0:03:13]} a5 {[%emt 0:01:22]} 17. h4 {[%emt 0:05:21]} b4 {[%emt 0:02:30]} 18. axb4 {[%emt 0:02:49]} axb4 {[%emt 0:00:08]} 19. Qxb4 {[%emt 0:02:37]} O-O {[%emt 0:00:21]} 20. Rd3 {[%emt 0:05:43]} Nc5 {[%emt 0:03:21]} 21. Bxc5 {[%emt 0:04:52]} dxc5 {[%emt 0:00:06]} 22. Qc4 {[%emt 0:00:13]} Rfb8 {[%emt 0:01:52]} 23. Ne2 {[%emt 0:06:15]} 0-1

[Event "NOR-ch Elite 2019"]
[Site "Larvik"]
[Date "2019.07.05"]
[Round "1.13"]
[White "Getz, Nicolai"]
[Black "Andersen, Alf Roger"]
[Result "1/2-1/2"]
[ECO "A11"]
[WhiteElo "2377"]
[BlackElo "2149"]
[Annotator "NA RC"]
[PlyCount "112"]
[EventDate "2019.07.05"]
[EventType "swiss"]
[EventCountry "NOR"]
[SourceTitle "playchess.com"]
[Source "ChessBase"]
[SourceQuality "1"]
[TimeControl "40/5400+30:1800+30"]

1. Nf3 {[%emt 0:00:00]} d5 {[%emt 0:00:00]} 2. g3 {[%emt 0:00:00]} Bg4 {[%emt 0:00:27]} 3. Bg2 {[%emt 0:00:38]} c6 {[%emt 0:01:06]} 4. d3 {[%emt 0:01:02]} Nd7 {[%emt 0:02:26]} 5. O-O {[%emt 0:01:01]} Ngf6 {[%emt 0:01:14]} 6. c4 {[%emt 0:01:50]} e6 {[%emt 0:02:36]} 7. cxd5 {[%emt 0:02:14]} cxd5 {[%emt 0:01:34]} 8. Nc3 {[%emt 0:02:16]} Bd6 {[%emt 0:06:14]} 9. h3 {[%emt 0:05:07]} Bh5 {[%emt 0:02:43]} 10. e4 {[%emt 0:00:26]} O-O {[%emt 0:10:10]} 11. Qe2 {[%emt 0:10:07]} Bc5 {[%emt 0:12:22]} 12. g4 {[%emt 0:04:48]} Bg6 {[%emt 0:01:13]} 13. Nh4 {[%emt 0:01:23]} Nxe4 {[%emt 0:13:40]} 14. Nxe4 {[%emt 0:03:14]} dxe4 {[%emt 0:07:44]} 15. Nxg6 {[%emt 0:00:15]} hxg6 {[%emt 0:00:48]} 16. Qxe4 {[%emt 0:02:13]} Nf6 {[%emt 0:04:49]} 17. Qxb7 {[%emt 0:03:16]} Qxd3 {[%emt 0:02:20]} 18. Bf4 {[%emt 0:02:21]} Nd5 {[%emt 0:09:13]} 19. Bh2 {[%emt 0:05:43]} Rad8 {[%emt 0:01:28]} 20. Kh1 {[%emt 0:05:47]} Bb6 {[%emt 0:01:40]} 21. Qc6 {[%emt 0:01:43]} Rc8 {[%emt 0:01:23]} 22. Qa4 {[%emt 0:00:13]} Qc2 {[%emt 0:03:45]} 23. Qa3 {[%emt 0:14:24]} Bxf2 {[%emt 0:05:01]} 24. Bd6 {[%emt 0:00:21]} Bc5 {[%emt 0:01:33]} 25. Bxc5 {[%emt 0:14:00]} Qxc5 {[%emt 0:00:09]} 26. Qxc5 {[%emt 0:03:54]} Rxc5 {[%emt 0:00:06]} 27. Rfc1 {[%emt 0:01:23]} Rfc8 {[%emt 0:00:34]} 28. Rxc5 {[%emt 0:00:08]} Rxc5 {[%emt 0:00:04]} 29. Rd1 {[%emt 0:04:03]} Kf8 {[%emt 0:03:14]} 30. Bxd5 {[%emt 0:04:27]} exd5 {[%emt 0:01:32]} 31. b4 {[%emt 0:03:55]} Rb5 {[%emt 0:00:53]} 32. Rd4 {[%emt 0:00:19]} a5 {[%emt 0:00:34]} 33. bxa5 {[%emt 0:01:19]} Rxa5 {[%emt 0:00:10]} 34. a4 {[%emt 0:00:18]} Ke7 {[%emt 0:00:47]} 35. Kg2 {[%emt 0:00:24]} Ke6 {[%emt 0:02:45]} 36. Rb4 {[%emt 0:00:33]} Ra7 {[%emt 0:00:47]} 37. Kf3 {[%emt 0:00:38]} Ke5 {[%emt 0:00:08]} 38. h4 {[%emt 0:01:11]} f6 {[%emt 0:00:32]} 39. Ke3 {[%emt 0:01:45]} f5 {[%emt 0:01:08]} 40. g5 {[%emt 0:00:40]} Ra6 {[%emt 0:00:31]} 41. Rb7 {[%emt 0:01:54]} Rxa4 {[%emt 0:05:27]} 42. Re7+ {[%emt 0:00:16]} Kd6 {[%emt 0:00:07]} 43. Rxg7 {[%emt 0:00:04]} Rxh4 {[%emt 0:00:19]} 44. Rxg6+ {[%emt 0:00:06]} Ke5 {[%emt 0:00:45]} 45. Rg8 {[%emt 0:00:41]} d4+ {[%emt 0:01:54]} 46. Kf3 {[%emt 0:02:03]} Rf4+ {[%emt 0:11:03]} 47. Ke2 {[%emt 0:01:42]} Ke6 {[%emt 0:01:48]} 48. Rg6+ {[%emt 0:02:15]} Ke5 {[%emt 0:00:51]} 49. Rg8 {[%emt 0:00:05]} Re4+ {[%emt 0:00:20]} 50. Kf3 {[%emt 0:00:01]} Rf4+ {[%emt 0:07:02]} 51. Ke2 {[%emt 0:00:26]} Rg4 {[%emt 0:00:13]} 52. Kf3 {[%emt 0:00:08]} Ke6 {[%emt 0:01:53]} 53. Rg6+ {[%emt 0:02:20]} Kd5 {[%emt 0:00:56]} 54. Rg8 {[%emt 0:02:10]} d3 {[%emt 0:00:43]} 55. g6 {[%emt 0:01:06]} Ke6 {[%emt 0:01:00]} 56. Rd8 {[%emt 0:00:09]} Rxg6 {[%emt 0:00:18] Ke4 Ke5+} 1/2-1/2

[Event "NOR-ch Elite 2019"]
[Site "Larvik"]
[Date "2019.07.06"]
[Round "2.2"]
[White "Tari, Aryan"]
[Black "Haldorsen, Benjamin"]
[Result "1/2-1/2"]
[ECO "B36"]
[WhiteElo "2620"]
[BlackElo "2444"]
[Annotator "RC"]
[PlyCount "113"]
[EventDate "2019.07.05"]
[EventType "swiss"]
[EventCountry "NOR"]
[SourceTitle "playchess.com"]
[Source "ChessBase"]
[SourceQuality "1"]
[TimeControl "40/5400+30:1800+30"]

1. e4 {[%emt 0:00:00]} c5 {[%emt 0:00:00]} 2. Nf3 {[%emt 0:00:00]} g6 {[%emt 0:00:06]} 3. c4 {[%emt 0:01:16]} Nc6 {[%emt 0:00:06]} 4. d4 {[%emt 0:00:07]} cxd4 {[%emt 0:00:22]} 5. Nxd4 {[%emt 0:00:24]} Nf6 {[%emt 0:00:06]} 6. Nc3 {[%emt 0:00:07]} d6 {[%emt 0:00:25]} 7. Be2 {[%emt 0:05:32]} Nxd4 {[%emt 0:01:10]} 8. Qxd4 {[%emt 0:00:08]} Bg7 {[%emt 0:00:04]} 9. Be3 {[%emt 0:00:23]} O-O {[%emt 0:00:08]} 10. Qd2 {[%emt 0:00:44]} a5 {[%emt 0:00:07]} 11. O-O {[%emt 0:03:14]} a4 {[%emt 0:02:10]} 12. Bd4 {[%emt 0:01:08]} Qa5 {[%emt 0:11:22]} 13. Rad1 {[%emt 0:00:31]} Bd7 {[%emt 0:00:42]} 14. Qe3 {[%emt 0:05:10]} Rfc8 {[%emt 0:15:49]} 15. Bxf6 {[%emt 0:23:56]} Bxf6 {[%emt 0:02:51]} 16. Nd5 {[%emt 0:00:12]} Be6 {[%emt 0:06:58]} 17. b4 {[%emt 0:05:45]} axb3 {[%emt 0:01:27]} 18. Nxf6+ {[%emt 0:00:10]} exf6 {[%emt 0:00:10]} 19. axb3 {[%emt 0:00:09]} Qc5 {[%emt 0:07:28]} 20. Rd4 {[%emt 0:12:39]} Ra3 {[%emt 0:02:57]} 21. Rfd1 {[%emt 0:00:28]} f5 {[%emt 0:09:39]} 22. exf5 {[%emt 0:02:25]} Bxf5 {[%emt 0:00:17]} 23. Qc3 {[%emt 0:05:19]} Qe5 {[%emt 0:07:04]} 24. Bf3 {[%emt 0:03:04]} b5 {[%emt 0:02:31]} 25. Qb4 {[%emt 0:01:31]} Qc5 {[%emt 0:05:38]} 26. Qxb5 {[%emt 0:09:45]} Bc2 {[%emt 0:02:43]} 27. Qxc5 {[%emt 0:02:42]} dxc5 {[%emt 0:02:40]} 28. Rd8+ {[%emt 0:00:15]} Rxd8 {[%emt 0:00:02]} 29. Rxd8+ {[%emt 0:00:06]} Kg7 {[%emt 0:00:03]} 30. h4 {[%emt 0:02:41]} Bxb3 {[%emt 0:02:56]} 31. Bd5 {[%emt 0:00:30]} Ra4 {[%emt 0:01:00]} 32. Rd7 {[%emt 0:00:37]} Bxc4 {[%emt 0:00:17]} 33. Rxf7+ {[%emt 0:00:08]} Kh8 {[%emt 0:00:40]} 34. Bxc4 {[%emt 0:00:49]} Rxc4 {[%emt 0:00:09]} 35. g3 {[%emt 0:00:08]} Rd4 {[%emt 0:02:43]} 36. Rc7 {[%emt 0:00:45]} Rd5 {[%emt 0:03:19]} 37. Kg2 {[%emt 0:00:14]} h5 {[%emt 0:01:07]} 38. Kf3 {[%emt 0:01:08]} Rf5+ {[%emt 0:01:44]} 39. Ke3 {[%emt 0:00:03]} Re5+ {[%emt 0:01:16]} 40. Kd3 {[%emt 0:02:46]} Rf5 {[%emt 0:01:00]} 41. f4 {[%emt 0:30:10]} Rd5+ {[%emt 0:30:15]} 42. Ke4 {[%emt 0:00:33]} Rd4+ {[%emt 0:00:15]} 43. Ke5 {[%emt 0:01:06]} Rd3 {[%emt 0:00:50]} 44. Kf6 {[%emt 0:01:14]} Rxg3 {[%emt 0:00:47]} 45. Rc8+ {[%emt 0:00:22]} Kh7 {[%emt 0:00:07]} 46. Rc7+ {[%emt 0:00:13]} Kh8 {[%emt 0:00:01]} 47. Rxc5 {[%emt 0:01:03]} Rg4 {[%emt 0:00:13]} 48. Rc7 {[%emt 0:01:30]} Kg8 {[%emt 0:04:35]} 49. Rg7+ {[%emt 0:01:48]} Kh8 {[%emt 0:00:19]} 50. Rxg6 {[%emt 0:01:43]} Rxf4+ {[%emt 0:00:05]} 51. Kg5 {[%emt 0:00:05]} Rg4+ {[%emt 0:00:12]} 52. Kxh5 {[%emt 0:00:07]} Rxg6 {[%emt 0:00:13]} 53. Kxg6 {[%emt 0:00:01]} Kg8 {[%emt 0:00:06]} 54. h5 {[%emt 0:00:02]} Kh8 {[%emt 0:00:05]} 55. h6 {[%emt 0:00:05]} Kg8 {[%emt 0:00:02]} 56. h7+ {[%emt 0:00:05]} Kh8 {[%emt 0:00:02]} 57. Kh6 {[%emt 0:00:06]} 1/2-1/2

[Event "NOR-ch Elite 2019"]
[Site "Larvik"]
[Date "2019.07.06"]
[Round "2.3"]
[White "Elsness, Frode"]
[Black "Urkedal, Frode Olav Olsen"]
[Result "1/2-1/2"]
[ECO "A13"]
[WhiteElo "2436"]
[BlackElo "2566"]
[Annotator "ChessBase"]
[PlyCount "99"]
[EventDate "2019.07.05"]
[EventType "swiss"]
[EventCountry "NOR"]
[SourceTitle "playchess.com"]
[Source "ChessBase"]
[SourceQuality "1"]
[TimeControl "40/5400+30:1800+30"]

1. c4 {[%emt 0:00:00]} Nf6 {[%emt 0:00:02]} 2. g3 {[%emt 0:00:05]} e6 {[%emt 0:00:32]} 3. Nf3 {[%emt 0:01:07]} d5 {[%emt 0:00:23]} 4. b3 {[%emt 0:00:26]} d4 {[%emt 0:02:00]} 5. e3 {[%emt 0:03:51]} c5 {[%emt 0:00:42]} 6. exd4 {[%emt 0:01:17]} cxd4 {[%emt 0:01:02]} 7. Bg2 {[%emt 0:00:09]} Nc6 {[%emt 0:01:15]} 8. O-O {[%emt 0:00:11]} Be7 {[%emt 0:05:43]} 9. Re1 {[%emt 0:04:20]} O-O {[%emt 0:00:26]} 10. Ne5 {[%emt 0:08:57]} Nxe5 {[%emt 0:09:52]} 11. Rxe5 {[%emt 0:00:02]} Qc7 {[%emt 0:13:10]} 12. Re1 {[%emt 0:00:17]} e5 {[%emt 0:00:23]} 13. Ba3 {[%emt 0:03:27]} Re8 {[%emt 0:02:25]} 14. Qc2 {[%emt 0:10:37]} Bd7 {[%emt 0:07:33]} 15. Bxe7 {[%emt 0:11:09]} Rxe7 {[%emt 0:00:55]} 16. d3 {[%emt 0:00:24]} Bc6 {[%emt 0:02:16]} 17. Nd2 {[%emt 0:01:33]} Bxg2 {[%emt 0:04:31]} 18. Kxg2 {[%emt 0:00:03]} Nd5 {[%emt 0:09:14]} 19. Qb2 {[%emt 0:07:21]} Nb4 {[%emt 0:12:55]} 20. Qb1 {[%emt 0:00:06]} Qc6+ {[%emt 0:00:05]} 21. f3 {[%emt 0:04:34]} f5 {[%emt 0:02:26]} 22. a3 {[%emt 0:02:12]} Qh6 {[%emt 0:00:03]} 23. Re2 {[%emt 0:01:02]} Nc6 {[%emt 0:00:08]} 24. b4 {[%emt 0:01:11]} Rae8 {[%emt 0:00:53]} 25. c5 {[%emt 0:05:46]} Kh8 {[%emt 0:01:41]} 26. Nc4 {[%emt 0:05:51]} Qh5 {[%emt 0:01:10]} 27. Qf1 {[%emt 0:03:05]} a6 {[%emt 0:09:10]} 28. Rae1 {[%emt 0:04:31]} f4 {[%emt 0:03:02]} 29. Re4 {[%emt 0:07:49]} Qg5 {[%emt 0:01:53]} 30. Qf2 {[%emt 0:02:20]} h5 {[%emt 0:02:08]} 31. Kh1 {[%emt 0:01:56]} Rf8 {[%emt 0:00:13]} 32. Qg2 {[%emt 0:04:55]} fxg3 {[%emt 0:03:47]} 33. hxg3 {[%emt 0:00:02]} Qf6 {[%emt 0:00:27]} 34. Rf1 {[%emt 0:01:32]} Qg6 {[%emt 0:01:04]} 35. Qh3 {[%emt 0:02:17]} Kg8 {[%emt 0:00:01]} 36. Nd6 {[%emt 0:01:13]} Qg5 {[%emt 0:03:30]} 37. Re2 {[%emt 0:02:04]} Nd8 {[%emt 0:00:27]} 38. Ne4 {[%emt 0:00:43]} Qg6 {[%emt 0:00:13]} 39. Rh2 {[%emt 0:00:23]} Rf5 {[%emt 0:01:15]} 40. g4 {[%emt 0:00:22]} Rf8 {[%emt 0:00:32]} 41. Qxh5 {[%emt 0:03:55]} Qxh5 {[%emt 0:00:12]} 42. Rxh5 {[%emt 0:00:09]} g6 {[%emt 0:00:41]} 43. Rh4 {[%emt 0:16:12]} Ne6 {[%emt 0:02:15]} 44. Rf2 {[%emt 0:01:01]} Rh7 {[%emt 0:03:03]} 45. Rxh7 {[%emt 0:00:11]} Kxh7 {[%emt 0:00:07]} 46. Nd6 {[%emt 0:01:43]} Nf4 {[%emt 0:00:09]} 47. Rd2 {[%emt 0:02:14]} Nd5 {[%emt 0:00:05]} 48. Rf2 {[%emt 0:00:53]} Nf4 {[%emt 0:01:26]} 49. Rd2 {[%emt 0:00:41]} Nd5 {[%emt 0:00:08]} 50. Rf2 {[%emt 0:01:36]} 1/2-1/2

[Event "NOR-ch Elite 2019"]
[Site "Larvik"]
[Date "2019.07.06"]
[Round "2.4"]
[White "Mikalsen, Erlend"]
[Black "Hauge, Lars Oskar"]
[Result "0-1"]
[ECO "C67"]
[WhiteElo "2404"]
[BlackElo "2476"]
[Annotator "ChessBase"]
[PlyCount "92"]
[EventDate "2019.07.05"]
[EventType "swiss"]
[EventCountry "NOR"]
[SourceTitle "playchess.com"]
[Source "ChessBase"]
[SourceQuality "1"]
[TimeControl "40/5400+30:1800+30"]

1. e4 {[%emt 0:00:00]} e5 {[%emt 0:00:00]} 2. Nf3 {[%emt 0:02:18]} Nc6 {[%emt 0:00:15]} 3. Bb5 {[%emt 0:00:06]} Nf6 {[%emt 0:00:03]} 4. O-O {[%emt 0:00:05]} Nxe4 {[%emt 0:00:09]} 5. d4 {[%emt 0:01:48]} Nd6 {[%emt 0:00:43]} 6. Bxc6 {[%emt 0:00:06]} dxc6 {[%emt 0:00:04]} 7. dxe5 {[%emt 0:00:05]} Nf5 {[%emt 0:00:02]} 8. Qxd8+ {[%emt 0:00:08]} Kxd8 {[%emt 0:00:04]} 9. Nc3 {[%emt 0:00:06]} Be7 {[%emt 0:00:03]} 10. h3 {[%emt 0:10:53]} Nh4 {[%emt 0:00:57]} 11. Nxh4 {[%emt 0:02:46]} Bxh4 {[%emt 0:00:33]} 12. Be3 {[%emt 0:03:23]} h5 {[%emt 0:00:56]} 13. Rad1+ {[%emt 0:09:09]} Ke8 {[%emt 0:01:36]} 14. Ne2 {[%emt 0:05:20]} Be7 {[%emt 0:05:18]} 15. Nd4 {[%emt 0:12:44]} h4 {[%emt 0:21:35]} 16. f4 {[%emt 0:05:41]} Rh5 {[%emt 0:00:35]} 17. f5 {[%emt 0:02:44]} Bc5 {[%emt 0:01:46]} 18. e6 {[%emt 0:01:15]} fxe6 {[%emt 0:01:15]} 19. fxe6 {[%emt 0:00:05]} Re5 {[%emt 0:01:33]} 20. Rf3 {[%emt 0:12:13]} Ke7 {[%emt 0:28:30]} 21. Rf7+ {[%emt 0:01:20]} Ke8 {[%emt 0:00:43]} 22. Rf3 {[%emt 0:05:14]} Ke7 {[%emt 0:00:06]} 23. Bf2 {[%emt 0:13:20]} Bxe6 {[%emt 0:02:26]} 24. Bxh4+ {[%emt 0:00:04]} g5 {[%emt 0:00:41]} 25. Bf2 {[%emt 0:00:20]} Rd8 {[%emt 0:03:28]} 26. Rfd3 {[%emt 0:01:01]} Bxd4 {[%emt 0:03:31]} 27. Bxd4 {[%emt 0:01:24]} Red5 {[%emt 0:00:33]} 28. c4 {[%emt 0:01:01]} R5d7 {[%emt 0:00:14]} 29. Bc5+ {[%emt 0:01:26]} Ke8 {[%emt 0:00:13]} 30. Rxd7 {[%emt 0:00:11]} Rxd7 {[%emt 0:00:04]} 31. Rxd7 {[%emt 0:04:19]} Kxd7 {[%emt 0:00:15]} 32. Bxa7 {[%emt 0:01:31]} b6 {[%emt 0:02:47]} 33. c5 {[%emt 0:01:22]} b5 {[%emt 0:04:00]} 34. b4 {[%emt 0:00:05]} Kc8 {[%emt 0:00:44]} 35. Kf2 {[%emt 0:00:05]} Kb7 {[%emt 0:00:24]} 36. Ke3 {[%emt 0:00:04]} Kxa7 {[%emt 0:00:33]} 37. Kd4 {[%emt 0:00:04]} Kb7 {[%emt 0:01:20]} 38. Ke5 {[%emt 0:00:22]} Bxa2 {[%emt 0:01:38]} 39. Kf6 {[%emt 0:00:49]} Bd5 {[%emt 0:00:10]} 40. g3 {[%emt 0:00:43]} Bg2 {[%emt 0:00:07]} 41. h4 {[%emt 0:32:09]} gxh4 {[%emt 0:30:29]} 42. gxh4 {[%emt 0:00:05]} Bf3 {[%emt 0:00:31]} 43. Kg5 {[%emt 0:00:15]} Kc8 {[%emt 0:00:13]} 44. h5 {[%emt 0:00:03]} Kd7 {[%emt 0:00:14]} 45. h6 {[%emt 0:00:03]} Be4 {[%emt 0:00:05]} 46. Kf6 {[%emt 0:00:03]} Ke8 {[%emt 0:01:37]} 0-1

[Event "NOR-ch Elite 2019"]
[Site "Larvik"]
[Date "2019.07.06"]
[Round "2.5"]
[White "Notkevich, Benjamin Arvola"]
[Black "Tryggestad, Andreas Garberg"]
[Result "1-0"]
[ECO "A38"]
[WhiteElo "2497"]
[BlackElo "2336"]
[Annotator "ChessBase"]
[PlyCount "101"]
[EventDate "2019.07.05"]
[EventType "swiss"]
[EventCountry "NOR"]
[SourceTitle "playchess.com"]
[Source "ChessBase"]
[SourceQuality "1"]
[TimeControl "40/5400+30:1800+30"]

1. c4 {[%emt 0:00:00]} Nf6 {[%emt 0:00:00]} 2. Nf3 {[%emt 0:00:00]} c5 {[%emt 0:00:00]} 3. Nc3 {[%emt 0:00:00]} d5 {[%emt 0:00:00]} 4. cxd5 {[%emt 0:00:00]} Nxd5 {[%emt 0:00:00]} 5. g3 {[%emt 0:00:00]} Nc6 {[%emt 0:00:18]} 6. Bg2 {[%emt 0:00:00]} g6 {[%emt 0:00:08]} 7. O-O {[%emt 0:03:23]} Bg7 {[%emt 0:00:04]} 8. Nxd5 {[%emt 0:00:51]} Qxd5 {[%emt 0:00:08]} 9. d3 {[%emt 0:00:09]} O-O {[%emt 0:00:53]} 10. Be3 {[%emt 0:01:09]} Bd7 {[%emt 0:05:09]} 11. d4 {[%emt 0:19:59]} cxd4 {[%emt 0:00:34]} 12. Nxd4 {[%emt 0:02:51]} Qh5 {[%emt 0:00:10]} 13. Nxc6 {[%emt 0:00:46]} Bxc6 {[%emt 0:00:03]} 14. Bxc6 {[%emt 0:00:30]} bxc6 {[%emt 0:00:01]} 15. Qc2 {[%emt 0:04:43]} Qa5 {[%emt 0:16:23]} 16. Rfd1 {[%emt 0:09:14]} Rfd8 {[%emt 0:00:17]} 17. a3 {[%emt 0:05:59]} Rab8 {[%emt 0:53:01]} 18. Rxd8+ {[%emt 0:10:53]} Qxd8 {[%emt 0:01:49]} 19. Rd1 {[%emt 0:00:57]} Qc7 {[%emt 0:00:06]} 20. b3 {[%emt 0:09:36]} a5 {[%emt 0:01:24]} 21. a4 {[%emt 0:02:04]} h5 {[%emt 0:00:33]} 22. Rd3 {[%emt 0:06:29]} h4 {[%emt 0:01:11]} 23. Qd1 {[%emt 0:03:18]} Qb7 {[%emt 0:08:53]} 24. Bc5 {[%emt 0:05:46]} Bf6 {[%emt 0:00:04]} 25. Qd2 {[%emt 0:00:49]} Qc7 {[%emt 0:02:34]} 26. Qe3 {[%emt 0:07:19]} Rd8 {[%emt 0:02:14]} 27. Bb6 {[%emt 0:04:52]} Rxd3 {[%emt 0:00:02]} 28. Bxc7 {[%emt 0:01:20]} Rxe3 {[%emt 0:00:01]} 29. fxe3 {[%emt 0:00:05]} Bc3 {[%emt 0:00:06]} 30. gxh4 {[%emt 0:00:18]} Kg7 {[%emt 0:05:01]} 31. Kg2 {[%emt 0:00:05]} Kf6 {[%emt 0:00:54]} 32. Kf3 {[%emt 0:00:05]} e5 {[%emt 0:01:43]} 33. Kg4 {[%emt 0:02:26]} Ke6 {[%emt 0:00:24]} 34. e4 {[%emt 0:00:04]} Bd2 {[%emt 0:00:22]} 35. Kf3 {[%emt 0:00:57]} f5 {[%emt 0:00:22]} 36. exf5+ {[%emt 0:00:14]} Kxf5 {[%emt 0:00:42]} 37. e4+ {[%emt 0:00:08]} Kf6 {[%emt 0:00:52]} 38. Ke2 {[%emt 0:00:56]} Bb4 {[%emt 0:00:07]} 39. Kd3 {[%emt 0:00:12]} Ke6 {[%emt 0:00:51]} 40. Kc4 {[%emt 0:00:10]} Kf6 {[%emt 0:01:28]} 41. Bb6 {[%emt 0:10:07]} Ke6 {[%emt 0:00:27]} 42. Be3 {[%emt 0:00:35]} Kd6 {[%emt 0:00:57]} 43. Kd3 {[%emt 0:02:43]} c5 {[%emt 0:02:59]} 44. Kc4 {[%emt 0:01:06]} Kc6 {[%emt 0:00:10]} 45. Bf2 {[%emt 0:01:56]} Bd2 {[%emt 0:03:00]} 46. Bxc5 {[%emt 0:00:38]} Bf4 {[%emt 0:00:23]} 47. h3 {[%emt 0:00:42]} Bg3 {[%emt 0:00:36]} 48. Be7 {[%emt 0:00:18]} Be1 {[%emt 0:00:28]} 49. Bd8 {[%emt 0:00:24]} Bd2 {[%emt 0:00:22]} 50. Bf6 {[%emt 0:00:16]} Bf4 {[%emt 0:00:07]} 51. Bg5 {[%emt 0:00:49] Kd5+} 1-0